{"text_format":"1","workbook":"xlsx","n_sheets":1,"sheets":["ورقة1"],"not_rendered":{"charts":0,"images":0,"macros":1,"external_links":0,"defined_names":0,"comments":0,"pivot_tables":0},"unopened":[],"bounds":{"document_bytes":16777216,"sheet_cells":100000,"rows_first":2000,"rows_last":500,"rows_between":2000,"halvings":0,"cell_chars":16384,"cell_head_chars":4096},"cells_cut":0,"cells_raw":0,"read":"whole","date_system":"1900"}

{"sheet":"ورقة1","index":0,"n_rows":38,"n_cols":12,"rows_kept":38,"cut":false,"hidden":false,"merged":[]}
[]
[]
[]
[null,"محمد1",{"$f":"Text_in(B4)","v":"محمد"},null,null,null,null," =Text_in(B4)"]
[null,"محمد2",{"$f":"Text_in(B5)","v":"محمد"}]
[null,"محمد3","محمد"]
[null,"محمد4","محمد"]
[null,"محمد5","محمد"]
[null,"محمد6","محمد",null,null,null,null,null,null,null,null,{"$f":"Text_in(K9)","v":""}]
[null,"محمد7",{"$f":"Text_in(B10)","v":"محمد"},null,null,null,null,null,null,null,null,""]
[null,"محمد8","محمد",null,null,null,null,null,null,null,null,""]
[null,"محمد9","محمد",null,null,null,null,null,null,null,null,""]
[null,"محمد10","محمد",null,null,null,null,null,null,null,null,""]
[null,"محمد11","محمد"]
[null,"محمد12","محمد"]
[null,"محمد13","محمد"]
[null,"محمد14","محمد"]
[null,"محمد15","محمد"]
[null,"محمد16","محمد"]
[null,"محمد17","محمد"]
[null,"محمد18","محمد"]
[null,"محمد19","محمد"]
[null,"محمد20","محمد"]
[null,"محمد21","محمد"]
[null,"محمد22","محمد"]
[null,"إجتماعيات 1","إجتماعيات"]
[null,"إجتماعيات 2","إجتماعيات"]
[null,"إجتماعيات 3","إجتماعيات"]
[null,"إجتماعيات 4","إجتماعيات"]
[null,"إجتماعيات 5","إجتماعيات"]
[null,"ادب 25","ادب"]
[null,"ادب 26","ادب"]
[null,"ادب 27","ادب"]
[null,"ادب 28","ادب"]
[null,"ادب 29","ادب"]
[null,"ادب 30","ادب"]
[null,"ادب 31","ادب"]
[null,"ادب 32","ادب"]